fUSD/lending_fUSD_20250911
["ID","MTS","AMOUNT","RATE_DAILY","PERIOD"]
[384826239,1757575693966,-400.0,0.00030237,7]
[384826240,1757575694046,-1731.62,0.00030237,7]
[384826241,1757575694127,-775.18,0.00030237,7]
[384826242,1757575694206,-400.0,0.00030237,7]
[384826243,1757575694283,-624.98,0.00030237,7]
[384826244,1757575694366,-709.71,0.00030237,7]
[384826245,1757575694446,-400.0,0.00030237,7]
[384826246,1757575694526,-400.0,0.00030237,7]
[384826247,1757575694601,-400.0,0.00030237,7]
[384826248,1757575694675,-400.0,0.00030237,7]
[384826249,1757575694745,-930.14,0.00030237,7]
[384826250,1757575694819,-400.0,0.00030237,7]
[384826251,1757575694892,-400.0,0.00030237,7]
[384826252,1757575694967,-1201.36,0.00030237,7]
[384826253,1757575695044,-566.67,0.00030237,7]
[384826254,1757575695117,-400.0,0.00030237,7]
[384826255,1757575695192,-400.0,0.00030237,7]
[384826256,1757575695267,-300.0,0.00030237,7]
[384826257,1757575695344,-1209.42,0.00030237,7]
[384826258,1757575695418,-400.0,0.00030237,7]
[384826259,1757575695497,-675.84,0.00030237,7]
[384826260,1757575695575,-798.89,0.00030237,7]
[384826261,1757575695656,-665.51,0.00030237,7]
[384826262,1757575695738,-594.53,0.00030237,7]
[384826263,1757575695821,-400.0,0.00030237,7]
[384826264,1757575695901,-400.0,0.00030237,7]
[384826265,1757575695975,-807.84,0.00030237,7]
[384826266,1757575696048,-1747.03,0.00030237,7]
[384826267,1757575696123,-404.29760213,0.00030237,7]
[384826268,1757575696193,-400.0,0.00030237,7]
[384826269,1757575696270,-400.0,0.00030237,7]
[384826270,1757575696343,-408.02,0.00030237,7]
[384826271,1757575696416,-1212.37,0.00030237,7]
[384826272,1757575696486,-400.0,0.00030237,7]
[384826273,1757575696574,-375.80417593,0.00030237,7]
[384826274,1757575696653,-2041.89,0.00030237,7]
[384826275,1757575696727,-562.72,0.00030237,7]
[384826276,1757575696804,-400.0,0.00030237,7]
[384826277,1757575696879,-549.02,0.00030237,7]
[384826278,1757575696953,-447.69,0.00030237,7]
[384826279,1757575697030,-2153.25,0.00030237,7]
[384826280,1757575697104,-426.47934538,0.00030237,7]
[384826281,1757575697187,-400.0,0.00030237,7]
[384826282,1757575697263,-400.0,0.00030237,7]
[384826283,1757575697335,-3652.29,0.00030237,7]
[384826284,1757575697410,-969.75,0.00030237,7]
[384826285,1757575697487,-400.0,0.00030237,7]
[384826286,1757575697562,-400.0,0.00030237,7]
[384826287,1757575697635,-555.45,0.00030237,7]
[384826288,1757575697711,-497.93,0.00030237,7]
[384826289,1757575697787,-400.0,0.00030237,7]
[384826290,1757575697865,-3128.86,0.00030237,7]
[384826291,1757575697945,-553.1,0.00030237,7]
[384826292,1757575698022,-575.65,0.00030237,7]
[384826293,1757575698105,-614.24,0.00030237,7]
[384826294,1757575698189,-400.0,0.00030237,7]
[384826295,1757575698272,-400.0,0.00030237,7]
[384826296,1757575698358,-747.66,0.00030237,7]
[384826297,1757575698434,-400.0,0.00030237,7]
[384826298,1757575698513,-400.0,0.00030237,7]
[384826299,1757575698860,-400.0,0.00030237,7]
[384826300,1757575698942,-673.25,0.00030237,7]
[384826301,1757575699024,-634.16,0.00030237,7]
[384826302,1757575699105,-400.0,0.00030237,7]
[384826303,1757575699184,-400.0,0.00030237,7]
[384826304,1757575699264,-467.67,0.00030237,7]
[384826305,1757575699339,-400.0,0.00030237,7]
[384826306,1757575699416,-677.51,0.00030237,7]
[384826307,1757575699492,-840.58,0.00030237,7]
[384826308,1757575699570,-441.61,0.00030238,7]
[384826309,1757575699646,-1351.51,0.00030238,7]
[384826310,1757575699719,-500.0,0.00030239,7]
[384826311,1757575699790,-316.41616135,0.00030249,7]
[384826312,1757575699866,-216.04527798,0.00030249,7]
[384826313,1757575699947,-452.58668054,0.00030249,7]
[384826314,1757575700025,-400.0,0.00030249,7]
[384826315,1757575700099,-400.0,0.00030249,7]
[384826316,1757575700181,-405.75462991,0.00030249,7]
[384826317,1757575700268,-400.0,0.00030249,7]
[384826318,1757575700350,-400.0,0.00030249,7]
[384826319,1757575700427,-400.0,0.00030249,7]
[384826320,1757575700499,-477.14078437,0.00030249,7]
[384826321,1757575700573,-400.0,0.00030249,7]
[384826322,1757575700644,-400.0,0.00030249,7]
[384826323,1757575700718,-405.08963276,0.00030249,7]
[384826324,1757575700791,-403.54,0.00030249,7]
[384826325,1757575700865,-400.0,0.00030249,7]
[384826326,1757575700943,-400.0,0.00030249,7]
[384826327,1757575701016,-420.13749331,0.00030249,7]
[384826328,1757575701091,-400.0,0.00030249,7]
[384826329,1757575701163,-438.55,0.00030249,7]
[384826330,1757575701235,-400.0,0.00030249,7]
[384826331,1757575701312,-401.76364065,0.00030249,7]
[384826332,1757575701388,-400.0,0.00030249,7]
[384826333,1757575701471,-400.0,0.00030249,7]
[384826334,1757575701540,-400.0,0.00030249,7]
[384826335,1757575701612,-682.59,0.00030249,7]
[384826336,1757575701700,-155.03863318,0.00030249,7]
[384826337,1757575701792,-400.0,0.00030249,7]
[384826338,1757575701867,-424.48036688,0.00030249,7]
[384826339,1757575701939,-400.0,0.00030249,7]
[384826340,1757575702012,-515.91,0.00030249,7]
[384826341,1757575702085,-400.0,0.00030249,7]
[384826342,1757575702158,-400.0,0.00030249,7]
[384826343,1757575702227,-544.49,0.00030249,7]
[384826344,1757575702294,-400.0,0.00030249,7]
[384826345,1757575702364,-400.0,0.00030249,7]
[384826346,1757575702431,-400.0,0.00030249,7]
[384826347,1757575702511,-400.0,0.00030249,7]
[384826348,1757575702579,-797.4,0.00030249,7]
[384826349,1757575702647,-400.0,0.00030249,7]
[384826350,1757575702715,-400.0,0.00030249,7]
[384826351,1757575702783,-400.0,0.00030249,7]
[384826352,1757575702854,-400.0,0.00030249,7]
[384826353,1757575702924,-400.0,0.00030249,7]
[384826354,1757575702993,-400.0,0.00030249,7]
[384826355,1757575703064,-611.48,0.00030249,7]
[384826356,1757575703135,-400.0,0.00030249,7]
[384826357,1757575703204,-665.1,0.00030249,7]
[384826358,1757575703272,-400.0,0.00030249,7]
[384826359,1757575703350,-400.0,0.00030249,7]
[384826360,1757575703422,-503.38688273,0.00030249,7]
[384826361,1757575703502,-442.28521847,0.00030249,7]
[384826362,1757575703581,-400.0,0.00030249,7]
[384826363,1757575703659,-400.0,0.00030249,7]
[384826364,1757575703736,-400.0,0.00030249,7]
[384826365,1757575703814,-792.88,0.00030249,7]
[384826366,1757575703892,-400.0,0.00030249,7]
[384826367,1757575703966,-402.62481995,0.00030249,7]
[384826368,1757575704043,-317.51200362,0.00030249,7]
[384826369,1757575704386,-400.0,0.00030249,7]
[384826370,1757575704463,-446.31,0.00030249,7]
[384826371,1757575704539,-594.61,0.00030249,7]
[384826372,1757575704612,-400.0,0.00030249,7]
[384826373,1757575704683,-400.0,0.00030249,7]
[384826374,1757575704754,-400.0,0.00030249,7]
[384826375,1757575704830,-400.0,0.00030249,7]
[384826376,1757575704908,-400.0,0.00030249,7]
[384826377,1757575704988,-400.0,0.00030249,7]
[384826378,1757575705080,-400.0,0.00030249,7]
[384826379,1757575705163,-409.75,0.00030249,7]
[384826380,1757575705240,-400.0,0.00030249,7]
[384826381,1757575705315,-609.03,0.00030249,7]
[384826382,1757575705403,-400.0,0.00030249,7]
[384826383,1757575705480,-400.0,0.00030249,7]
[384826384,1757575705557,-733.03,0.00030249,7]
[384826385,1757575705635,-400.0,0.00030249,7]
[384826386,1757575705713,-400.0,0.00030249,7]
[384826387,1757575705791,-407.18550964,0.00030249,7]
[384826388,1757575705877,-400.0,0.00030249,7]
[384826389,1757575705958,-435.66694257,0.00030249,7]
[384826390,1757575706040,-400.0,0.00030249,7]
[384826391,1757575706119,-400.0,0.00030249,2]
[384826392,1757575706200,-406.1081206,0.00030249,7]
[384826393,1757575706283,-400.0,0.00030249,7]
[384826394,1757575706368,-472.88,0.00030249,7]
[384826395,1757575706448,-1233.9,0.00030249,7]
[384826396,1757575706530,-400.0,0.00030249,7]
[384826397,1757575706628,-400.0,0.00030249,7]
[384826398,1757575706717,-400.0,0.00030249,7]
[384826399,1757575706814,-400.0,0.00030249,7]
[384826400,1757575706910,-400.0,0.00030249,7]
[384826401,1757575706995,-400.0,0.00030249,7]
[384826402,1757575707464,-400.0,0.00030249,7]
[384826403,1757575707560,-400.0,0.00030249,7]
[384826404,1757575707639,-400.0,0.00030249,7]
[384826405,1757575707717,-496.51,0.00030249,7]
[384826406,1757575707806,-400.0,0.00030249,7]
[384826407,1757575707893,-400.0,0.00030249,7]
[384826408,1757575707987,-400.0,0.00030249,7]
[384826409,1757575708073,-400.0,0.00030249,7]
[384826410,1757575708160,-400.0,0.00030249,7]
[384826411,1757575708241,-400.0,0.00030249,7]
[384826412,1757575708322,-400.0,0.00030249,7]
[384826413,1757575708405,-400.0,0.00030249,7]
[384826414,1757575708489,-408.35969423,0.00030249,7]
[384826415,1757575708572,-400.0,0.00030249,7]
[384826416,1757575708660,-400.0,0.00030249,7]
[384826417,1757575708741,-403.27012132,0.00030249,7]
[384826418,1757575708824,-400.0,0.00030249,7]
[384826419,1757575708916,-400.0,0.00030249,7]
[384826420,1757575709000,-400.0,0.00030249,7]
[384826421,1757575709081,-541.9,0.00030249,7]
[384826422,1757575709162,-407.17417923,0.00030249,7]
[384826423,1757575709243,-400.6066129,0.00030249,7]
[384826424,1757575709326,-416.66,0.00030249,7]
[384826425,1757575709404,-400.0,0.00030249,7]
[384826426,1757575709491,-400.0,0.00030249,7]
[384826427,1757575709571,-447.22,0.00030249,7]
[384826428,1757575709654,-400.0,0.00030249,7]
[384826429,1757575709733,-409.30067069,0.00030249,7]
[384826430,1757575709812,-400.0,0.00030249,7]
[384826431,1757575709890,-403.76075702,0.00030249,7]
[384826432,1757575709972,-400.0,0.00030249,7]
[384826433,1757575710054,-400.0,0.00030249,7]
[384826434,1757575710134,-400.0,0.00030249,7]
[384826435,1757575710217,-400.0,0.00030249,7]
[384826436,1757575710297,-400.0,0.00030249,7]
[384826437,1757575710378,-400.0,0.00030249,7]
[384826438,1757575710456,-400.0,0.00030249,7]
[384826439,1757575710532,-403.21204565,0.00030249,7]
[384826440,1757575710608,-400.0,0.00030249,7]
[384826441,1757575710683,-400.0,0.00030249,7]
[384826442,1757575710760,-400.0,0.00030249,7]
[384826443,1757575710843,-400.0,0.00030249,7]
[384826444,1757575710924,-400.0,0.00030249,7]
[384826445,1757575711004,-400.0,0.00030249,7]
[384826446,1757575711089,-400.0,0.00030249,7]
[384826447,1757575711166,-400.0,0.00030249,7]
[384826448,1757575711238,-403.48475126,0.00030249,7]
[384826449,1757575711313,-400.0,0.00030249,7]
[384826450,1757575711409,-400.0,0.00030249,7]
[384826451,1757575711504,-400.0,0.00030249,7]
[384826452,1757575711590,-743.07,0.00030249,7]
[384826453,1757575711671,-400.0,0.00030249,7]
[384826454,1757575711753,-400.0,0.00030249,7]
[384826455,1757575711840,-400.0,0.00030249,7]
[384826456,1757575711921,-409.54022821,0.00030249,7]
[384826457,1757575711997,-411.92312859,0.00030249,7]
[384826458,1757575712074,-661.34,0.00030249,7]
[384826459,1757575712150,-400.0,0.00030249,7]
[384826460,1757575712220,-400.0,0.00030249,7]
[384826461,1757575712292,-400.0,0.00030249,7]
[384826462,1757575712366,-400.0,0.00030249,7]
[384826463,1757575712437,-657.64,0.00030249,7]
[384826464,1757575712511,-413.57,0.00030249,7]
[384826465,1757575712584,-400.0,0.00030249,7]
[384826466,1757575712656,-400.0,0.00030249,7]
[384826467,1757575712733,-400.0,0.00030249,7]
[384826468,1757575712812,-400.0,0.00030249,7]
[384826469,1757575712894,-523.01,0.00030249,7]
[384826470,1757575712973,-400.0,0.00030249,7]
[384826471,1757575713049,-400.0,0.00030249,7]
[384826472,1757575713130,-472.67878751,0.00030249,7]
[384826473,1757575713209,-400.0,0.00030249,7]
[384826474,1757575713283,-300.0,0.00030249,7]
[384826475,1757575713367,-400.0,0.00030249,7]
[384826476,1757575713441,-400.0,0.00030249,7]
[384826477,1757575713514,-445.02,0.00030249,7]
[384826478,1757575713588,-400.0,0.00030249,7]
[384826479,1757575713660,-452.7,0.00030249,7]
[384826480,1757575713732,-440.17,0.00030249,7]
[384826481,1757575713804,-400.0,0.00030249,7]
[384826482,1757575713879,-400.0,0.00030249,7]
[384826483,1757575713954,-459.31,0.00030249,7]
[384826484,1757575714030,-400.0,0.00030249,7]
[384826485,1757575714104,-400.0,0.00030249,7]
[384826486,1757575714178,-400.0,0.00030249,7]
[384826487,1757575714265,-400.0,0.00030249,7]
[384826488,1757575714341,-400.0,0.00030249,7]
[384826489,1757575714415,-1831.05,0.00030249,7]
[384826490,1757575714491,-400.0,0.00030249,7]
[384826491,1757575714564,-400.0,0.00030249,7]
[384826492,1757575714635,-400.0,0.00030249,7]
[384826493,1757575714727,-377.44979943,0.00030249,7]
[384826494,1757575714826,-412.37549126,0.00030249,7]
[384826495,1757575714910,-400.0,0.00030249,7]
[384826496,1757575714997,-400.0,0.00030249,7]
[384826497,1757575715081,-405.72837619,0.00030249,7]
[384826498,1757575715166,-419.27080587,0.00030249,7]
[384826499,1757575715246,-400.0,0.00030249,7]
[384826500,1757575715317,-400.0,0.00030249,7]
[384826501,1757575715394,-400.0,0.00030249,7]
[384826502,1757575715467,-399.62653429,0.00030249,7]
[384826503,1757575715541,-400.0,0.00030249,7]
[384826504,1757575715620,-400.0,0.00030249,7]
[384826505,1757575715698,-400.0,0.00030249,7]
[384826506,1757575716143,-400.0,0.00030249,7]
[384826507,1757575716219,-512.9516347,0.00030249,7]
[384826508,1757575716289,-1545.99,0.00030249,7]
[384826509,1757575716362,-405.35917658,0.00030249,7]
[384826510,1757575716431,-1823.45,0.00030249,7]
[384826511,1757575716502,-400.0,0.00030249,7]
[384826512,1757575716571,-421.73473806,0.00030249,7]
[384826513,1757575716640,-400.0,0.00030249,7]
[384826514,1757575716709,-400.0,0.00030249,7]
[384826515,1757575716779,-400.0,0.00030249,7]
[384826516,1757575716848,-516.84,0.00030249,7]
[384826517,1757575716919,-400.0,0.00030249,7]
[384826518,1757575716989,-400.0,0.00030249,7]
[384826519,1757575717059,-1019.67,0.00030249,7]
[384826520,1757575717127,-400.0,0.00030249,7]
[384826521,1757575717196,-4017.8,0.00030249,5]
[384826522,1757575717267,-400.0,0.00030249,7]
[384826523,1757575717336,-400.0,0.00030249,7]
[384826524,1757575717408,-408.27905369,0.00030249,7]
[384826525,1757575717480,-407.7001398,0.00030249,7]
[384826526,1757575717552,-400.0,0.00030249,7]
[384826527,1757575717622,-404.22210816,0.00030249,7]
[384826528,1757575717692,-1481.48,0.00030249,7]
[384826529,1757575717765,-400.0,0.00030249,7]
[384826530,1757575717838,-400.67,0.00030249,7]
[384826531,1757575717912,-400.0,0.00030249,7]
[384826532,1757575717982,-400.0,0.00030249,7]
[384826533,1757575718055,-400.0,0.00030249,7]
[384826534,1757575718128,-400.0,0.00030249,7]
[384826535,1757575718200,-400.0,0.00030249,7]
[384826536,1757575718277,-400.0,0.00030249,7]
[384826537,1757575718354,-400.0,0.00030249,7]
[384826538,1757575718431,-689.71,0.00030249,7]
[384826539,1757575718508,-400.0,0.00030249,7]
[384826540,1757575718587,-400.0,0.00030249,7]
[384826541,1757575718660,-400.0,0.00030249,7]
[384826542,1757575718734,-400.0,0.00030249,7]
[384826543,1757575718825,-400.0,0.00030249,7]
[384826544,1757575718900,-632.22,0.00030249,7]
[384826545,1757575718974,-400.0,0.00030249,7]
[384826546,1757575719059,-400.0,0.00030249,7]
[384826547,1757575719133,-400.0,0.00030249,7]
[384826548,1757575719207,-1589.17,0.00030249,7]
[384826549,1757575719281,-400.0,0.00030249,7]
[384826550,1757575719360,-400.0,0.00030249,7]
[384826551,1757575719436,-400.0,0.00030249,7]
[384826552,1757575719516,-400.0,0.00030249,7]
[384826553,1757575719594,-400.0,0.00030249,7]
[384826554,1757575719670,-400.0,0.00030249,7]
[384826555,1757575719746,-481.26,0.00030249,7]
[384826556,1757575719826,-419.04049016,0.00030249,7]
[384826557,1757575719901,-400.0,0.00030249,7]
[384826558,1757575719975,-400.0,0.00030249,7]
[384826559,1757575720049,-596.87,0.00030249,7]
[384826560,1757575720122,-400.0,0.00030249,7]
[384826561,1757575720193,-400.0,0.00030249,7]
[384826562,1757575720270,-400.0,0.00030249,7]
[384826563,1757575720347,-400.0,0.00030249,7]
[384826564,1757575720420,-400.0,0.00030249,7]
[384826565,1757575720492,-400.0,0.00030249,7]
[384826566,1757575720564,-400.0,0.00030249,7]
[384826567,1757575720635,-400.0,0.00030249,7]
[384826568,1757575720708,-400.0,0.00030249,7]
[384826569,1757575720781,-400.0,0.00030249,7]
[384826570,1757575720856,-400.0,0.00030249,7]
[384826571,1757575720930,-400.0,0.00030249,7]
[384826572,1757575721004,-400.0,0.00030249,7]
[384826573,1757575721077,-400.0,0.00030249,7]
[384826574,1757575721147,-400.0,0.00030249,7]
[384826575,1757575721218,-754.72,0.00030249,7]
[384826576,1757575721287,-400.0,0.00030249,7]
[384826577,1757575721358,-400.0,0.00030249,7]
[384826578,1757575721428,-400.0,0.00030249,7]
[384826579,1757575721500,-836.95,0.00030249,7]
[384826580,1757575721573,-400.0,0.00030249,7]
[384826581,1757575721646,-400.0,0.00030249,7]
[384826582,1757575721718,-400.0,0.00030249,7]
[384826583,1757575721793,-466.94,0.00030249,7]
[384826584,1757575721870,-514.91,0.00030249,7]
[384826585,1757575721948,-400.0,0.00030249,7]
[384826586,1757575722027,-411.11824185,0.00030249,7]
[384826587,1757575722102,-400.0,0.00030249,7]
[384826588,1757575722176,-400.0,0.00030249,7]
[384826589,1757575722248,-792.7,0.00030249,7]
[384826590,1757575722326,-400.0,0.00030249,7]
[384826591,1757575722401,-400.0,0.00030249,7]
[384826592,1757575722474,-403.94881291,0.00030249,7]
[384826593,1757575722547,-400.0,0.00030249,7]
[384826594,1757575722622,-400.0,0.00030249,7]
[384826595,1757575722693,-400.0,0.00030249,7]
[384826596,1757575722764,-400.0,0.00030249,7]
[384826597,1757575722836,-436.97,0.00030249,7]
[384826598,1757575722912,-400.0,0.00030249,7]
[384826599,1757575722990,-403.50566288,0.00030249,7]
[384826600,1757575723070,-400.0,0.00030249,7]
[384826601,1757575723143,-400.0,0.00030249,7]
[384826602,1757575723218,-400.0,0.00030249,7]
[384826603,1757575723290,-400.0,0.00030249,7]
[384826604,1757575723369,-676.0,0.00030249,7]
[384826605,1757575723457,-400.0,0.00030249,7]
[384826606,1757575723537,-400.0,0.00030249,7]
[384826607,1757575723615,-403.30976217,0.00030249,7]
[384826608,1757575723694,-634.11,0.00030249,7]
[384826609,1757575723771,-403.29563029,0.00030249,7]
[384826610,1757575724053,-404.58186818,0.00030249,7]
[384826611,1757575724152,-400.0,0.00030249,7]
[384826612,1757575724230,-559.8,0.00030249,7]
[384826613,1757575724302,-400.0,0.00030249,7]
[384826614,1757575724390,-400.0,0.00030249,7]
[384826615,1757575724471,-400.0,0.00030249,7]
[384826616,1757575724552,-811.3,0.00030249,7]
[384826617,1757575724632,-400.0,0.00030249,7]
[384826618,1757575724712,-403.43262019,0.00030249,7]
[384826619,1757575724794,-400.0,0.00030249,7]
[384826620,1757575724877,-400.0,0.00030249,7]
[384826621,1757575724961,-872.82,0.00030249,7]
[384826622,1757575725047,-400.0,0.00030249,7]
[384826623,1757575725130,-610.73,0.00030249,7]
[384826624,1757575725210,-1321.6,0.00030249,7]
[384826625,1757575725290,-400.0,0.00030249,7]
[384826626,1757575725374,-400.0,0.00030249,7]
[384826627,1757575725453,-400.0,0.00030249,7]
[384826628,1757575725534,-408.73611835,0.00030249,7]
[384826629,1757575725624,-400.0,0.00030249,7]
[384826630,1757575725699,-400.0,0.00030249,7]
[384826631,1757575725777,-835.08,0.00030249,7]
[384826632,1757575725877,-540.76,0.00030249,7]
[384826633,1757575725960,-410.29733266,0.00030249,7]
[384826634,1757575726037,-1068.8,0.00030249,7]
[384826635,1757575726114,-400.0,0.00030249,7]
[384826636,1757575726190,-404.57029151,0.00030249,7]
[384826637,1757575726267,-529.45,0.00030249,7]
[384826638,1757575726360,-400.0,0.00030249,7]
[384826639,1757575726443,-400.0,0.00030249,7]
[384826640,1757575726516,-400.0,0.00030249,7]
[384826641,1757575726592,-938.28,0.00030249,7]
[384826642,1757575726662,-687.64,0.00030249,7]
[384826643,1757575726728,-780.08,0.00030249,7]
[384826644,1757575726800,-400.0,0.00030249,7]
[384826645,1757575726873,-400.0,0.00030249,7]
[384826646,1757575726945,-738.18,0.00030249,7]
[384826647,1757575727018,-400.0,0.00030249,7]
[384826648,1757575727091,-418.29569879,0.00030249,7]
[384826649,1757575727161,-400.0,0.00030249,7]
[384826650,1757575727231,-601.12,0.00030249,7]
[384826651,1757575727306,-569.58,0.00030249,7]
[384826652,1757575727379,-587.01,0.00030249,7]
[384826653,1757575727454,-945.48,0.00030249,7]
[384826654,1757575727533,-400.0,0.00030249,7]
[384826655,1757575727610,-400.0,0.00030249,7]
[384826656,1757575727685,-400.0,0.00030249,7]
[384826657,1757575727761,-544.31,0.00030249,7]
[384826658,1757575727863,-400.0,0.00030249,7]
[384826659,1757575727962,-631.21,0.00030249,7]
[384826660,1757575728053,-400.0,0.00030249,7]
[384826661,1757575728134,-852.2,0.00030249,7]
[384826662,1757575728215,-400.0,0.00030249,7]
[384826663,1757575728293,-400.0,0.00030249,7]
[384826664,1757575728375,-1037.97,0.00030249,7]
[384826665,1757575728454,-400.0,0.00030249,7]
[384826666,1757575728527,-550.32,0.00030249,7]
[384826667,1757575728600,-1101.83,0.00030249,7]
[384826668,1757575728676,-400.0,0.00030249,7]
[384826669,1757575728746,-400.0,0.00030249,7]
[384826670,1757575728822,-771.6,0.00030249,7]
[384826671,1757575728896,-400.0,0.00030249,7]
[384826672,1757575728968,-875.62,0.00030249,7]
[384826673,1757575729042,-400.0,0.00030249,7]
[384826674,1757575729130,-407.75968024,0.00030249,7]
[384826675,1757575729201,-400.0,0.00030249,7]
[384826676,1757575729273,-864.22,0.00030249,7]
[384826677,1757575729345,-400.0,0.00030249,7]
[384826678,1757575729417,-400.0,0.00030249,7]
[384826679,1757575729490,-400.0,0.00030249,7]
[384826680,1757575729564,-400.0,0.00030249,7]
[384826681,1757575729634,-400.0,0.00030249,7]
[384826682,1757575729711,-884.44,0.00030249,7]
[384826683,1757575729783,-400.0,0.00030249,7]
[384826684,1757575729855,-400.0,0.00030249,7]
[384826685,1757575729928,-987.99,0.00030249,7]
[384826686,1757575730005,-400.0,0.00030249,7]
[384826687,1757575730079,-406.21,0.00030249,7]
[384826688,1757575730156,-400.0,0.00030249,7]
[384826689,1757575730231,-500.0,0.00030249,7]
[384826690,1757575730307,-400.0,0.00030249,7]
[384826691,1757575730395,-665.84,0.00030249,7]
[384826692,1757575730467,-846.03,0.00030249,7]
[384826693,1757575730539,-413.27275527,0.00030249,7]
[384826694,1757575730612,-400.0,0.00030249,7]
[384826695,1757575730682,-400.0,0.00030249,7]
[384826696,1757575730754,-400.0,0.00030249,7]
[384826697,1757575730824,-400.0,0.00030249,7]
[384826698,1757575730918,-500.0,0.0003025,7]
[384826699,1757575730992,-500.0,0.00030251,7]
[384826700,1757575731064,-150.0,0.00030252,2]
[384826701,1757575731137,-150.0,0.00030252,2]
[384826702,1757575731207,-153.97599017,0.00030252,2]
[384826703,1757575731275,-150.0,0.00030252,2]
[384826704,1757575731350,-503.87483385,0.00030252,2]
[384826705,1757575731421,-153.44963146,0.00030252,2]
[384826706,1757575731491,-502.06581836,0.00030252,2]
[384826707,1757575731562,-150.0,0.00030252,2]
[384826708,1757575731632,-500.0,0.00030252,2]
[384826709,1757575731700,-151.5433957,0.00030252,2]
[384826710,1757575731772,-282.13209879,0.00030252,2]
[384826711,1757575731846,-150.0,0.00030252,2]
[384826712,1757575731921,-502.02817944,0.00030252,2]
[384826713,1757575731995,-202.58062418,0.00030252,2]
[384826714,1757575732400,-150.0,0.00030252,2]
[384826715,1757575732472,-500.0,0.00030252,2]
[384826716,1757575732542,-150.54333779,0.00030252,2]
[384826717,1757575732614,-151.76319419,0.00030252,2]
[384826718,1757575732684,-150.70483784,0.00030252,2]
[384826719,1757575732755,-505.62967171,0.00030252,2]
[384826720,1757575732828,-150.0,0.00030252,2]
[384826721,1757575732899,-500.0,0.00030252,2]
[384826722,1757575732972,-150.84043773,0.00030252,2]
[384826723,1757575733043,-500.0,0.00030252,2]
[384826724,1757575733114,-152.27174978,0.00030252,2]
[384826725,1757575733185,-500.0,0.00030252,2]
[384826726,1757575733256,-500.0,0.00030252,2]
[384826727,1757575733354,-502.13459716,0.00030252,2]
[384826728,1757575733448,-500.0,0.00030252,2]
[384826729,1757575733521,-153.43269839,0.00030252,2]
[384826730,1757575733593,-500.0,0.00030252,2]
[384826731,1757575733669,-500.0,0.00030252,2]
[384826732,1757575733741,-500.0,0.00030252,2]
[384826733,1757575733819,-150.0,0.00030252,2]
[384826734,1757575733894,-150.0,0.00030252,2]
[384826735,1757575733968,-500.0,0.00030261,7]
[384826736,1757575734039,-1513.52083296,0.00030272,2]
[384826737,1757575734111,-267.46074303,0.00030272,2]
[384826738,1757575734182,-500.0,0.00030273,5]